[Event "European Rapid Championship 2021"]
[Site "Katowice"]
[Date "2021.12.18"]
[Round "4.1"]
[White "Spalir, Jernej"]
[Black "Batashevs, Arsens"]
[Result "0-1"]
[ECO "A40"]
[WhiteElo "2340"]
[BlackElo "2165"]
[Annotator "NA"]
[PlyCount "100"]
[EventDate "2021.12.18"]
[EventType "swiss"]
[EventCountry "POL"]
[SourceTitle "playchess.com"]
[Source "ChessBase"]
[SourceQuality "1"]
[TimeControl "900+10"]

1. d4 {[%emt 0:00:02]} g6 {[%emt 0:03:02]} 2. c4 {[%emt 0:00:05]} Bg7 {[%emt 0:
00:01]} 3. Nf3 {[%emt 0:00:06]} d6 {[%emt 0:00:19]} 4. g3 {[%emt 0:00:03]} c5 {
[%emt 0:00:57]} 5. d5 {[%emt 0:00:09]} Nf6 {[%emt 0:00:05]} 6. Nc3 {[%emt 0:00:
07]} Na6 {[%emt 0:00:02]} 7. Bg2 {[%emt 0:00:05]} Nc7 {[%emt 0:00:02]} 8. O-O {
[%emt 0:00:03]} O-O {[%emt 0:00:12]} 9. Qc2 {[%emt 0:00:42]} a6 {[%emt 0:00:18]
} 10. b3 {[%emt 0:00:07]} b5 {[%emt 0:00:04]} 11. Bb2 {[%emt 0:00:03]} Rb8 {
[%emt 0:00:58]} 12. Rab1 {[%emt 0:00:01]} b4 {[%emt 0:00:26]} 13. Nd1 {[%emt 0:
00:49]} Bf5 {[%emt 0:00:02]} 14. Qc1 {[%emt 0:00:01]} Bxb1 {[%emt 0:00:05]} 15.
Qxb1 {[%emt 0:00:01]} a5 {[%emt 0:01:00]} 16. e4 {[%emt 0:00:05]} a4 {[%emt 0:
00:18]} 17. Ne3 {[%emt 0:00:05]} axb3 18. axb3 {[%emt 0:00:02]} Ra8 {[%emt 0:
00:36]} 19. Ne1 {[%emt 0:00:19]} Nd7 {[%emt 0:00:45]} 20. Nd3 {[%emt 0:00:06]}
Qb8 {[%emt 0:00:19]} 21. Bh3 {[%emt 0:00:31]} Ne5 {[%emt 0:00:08]} 22. Nxe5 {
[%emt 0:00:12]} Bxe5 {[%emt 0:00:08]} 23. Bxe5 {[%emt 0:00:03]} dxe5 {[%emt 0:
00:01]} 24. Qb2 {[%emt 0:00:15]} f6 25. Bd7 {[%emt 0:00:45]} Ne8 {[%emt 0:01:
34]} 26. Nc2 {[%emt 0:00:49]} Nd6 {[%emt 0:00:04]} 27. f3 {[%emt 0:00:03]} Qc7
{[%emt 0:00:31]} 28. Bc6 {[%emt 0:00:05]} Ra6 {[%emt 0:00:03]} 29. Ne1 {
[%emt 0:00:02]} Qa7 {[%emt 0:00:15]} 30. Nd3 {[%emt 0:00:18]} Ra2 {[%emt 0:00:
12]} 31. Qc1 {[%emt 0:00:01]} Ra3 {[%emt 0:00:34]} 32. Ba4 {[%emt 0:00:26]} Qa6
{[%emt 0:00:39]} 33. Kg2 {[%emt 0:00:18]} Rc8 {[%emt 0:00:20]} 34. Nb2 {
[%emt 0:00:43]} Ra2 {[%emt 0:00:03]} 35. Rf2 {[%emt 0:00:01]} Rc7 {[%emt 0:00:
34]} 36. h4 {[%emt 0:00:03]} Kg7 {[%emt 0:00:08]} 37. Rc2 {[%emt 0:00:08]} Nc8
{[%emt 0:00:04]} 38. Qb1 {[%emt 0:00:52]} Ra3 {[%emt 0:00:07]} 39. Nd3 {
[%emt 0:00:06]} Nb6 {[%emt 0:00:11]} 40. Bc6 {[%emt 0:00:05]} Qa5 {[%emt 0:02:
10]} 41. Qg1 {[%emt 0:00:02]} Ra7 {[%emt 0:02:43]} 42. Nxc5 {[%emt 0:00:03]}
Ra2 {[%emt 0:00:10]} 43. Rxa2 {[%emt 0:00:40]} Qxa2+ {[%emt 0:00:01]} 44. Kh3 {
[%emt 0:00:02]} Qe2 {[%emt 0:01:50]} 45. Na4 {[%emt 0:00:21]} Qxf3 {[%emt 0:00:
04]} 46. Kh2 {[%emt 0:00:45]} Qe2+ {[%emt 0:00:13]} 47. Qg2 {[%emt 0:00:01]}
Qxg2+ {[%emt 0:00:03]} 48. Kxg2 {[%emt 0:00:01]} Nxa4 {[%emt 0:00:00]} 49. Bxa4
{[%emt 0:00:02]} Rxa4 {[%emt 0:00:03]} 50. bxa4 {[%emt 0:00:03]} b3 {[%emt 0:
00:00]} 0-1

[Event "European Rapid Championship 2021"]
[Site "Katowice"]
[Date "2021.12.18"]
[Round "4.2"]
[White "Lach, Aleksandra"]
[Black "Papasimakopoulos, Alexandros"]
[Result "0-1"]
[ECO "C00"]
[WhiteElo "2132"]
[BlackElo "2274"]
[Annotator "NA"]
[PlyCount "104"]
[EventDate "2021.12.18"]
[EventType "swiss"]
[EventCountry "POL"]
[SourceTitle "playchess.com"]
[Source "ChessBase"]
[SourceQuality "1"]
[TimeControl "900+10"]

1. e4 {[%emt 0:00:05]} e6 {[%emt 0:00:01]} 2. d3 {[%emt 0:00:03]} d5 {[%emt 0:
00:01]} 3. Nd2 {[%emt 0:00:01]} c5 {[%emt 0:00:03]} 4. Ngf3 {[%emt 0:00:06]}
Nc6 {[%emt 0:00:01]} 5. g3 {[%emt 0:00:04]} Nge7 {[%emt 0:00:02]} 6. Bg2 {
[%emt 0:00:01]} g6 {[%emt 0:00:02]} 7. O-O {[%emt 0:00:18]} Bg7 {[%emt 0:00:01]
} 8. c3 {[%emt 0:00:01]} h6 {[%emt 0:00:06]} 9. Qe2 {[%emt 0:00:40]} a5 {
[%emt 0:00:05]} 10. a4 {[%emt 0:00:29]} b6 {[%emt 0:00:02]} 11. c4 {[%emt 0:02:
55]} dxc4 {[%emt 0:00:26]} 12. Nxc4 {[%emt 0:00:11]} O-O {[%emt 0:00:12]} 13.
e5 {[%emt 0:00:46]} Ba6 {[%emt 0:00:10]} 14. h4 {[%emt 0:00:35]} Ra7 {[%emt 0:
00:09]} 15. Bd2 {[%emt 0:00:43]} Rd7 {[%emt 0:00:09]} 16. Ra3 {[%emt 0:02:40]}
Nf5 {[%emt 0:02:03]} 17. Rc1 {[%emt 0:02:13]} Nb4 {[%emt 0:00:22]} 18. Ne1 {
[%emt 0:01:29]} Qc7 {[%emt 0:02:13]} 19. Bf4 {[%emt 0:00:38]} Nd5 {[%emt 0:00:
21]} 20. Qg4 {[%emt 0:01:24]} h5 {[%emt 0:00:10]} 21. Qh3 {[%emt 0:00:09]} Nxf4
{[%emt 0:00:07]} 22. gxf4 {[%emt 0:00:02]} Rd4 {[%emt 0:00:11]} 23. Be4 {
[%emt 0:00:04]} Bb7 {[%emt 0:00:45]} 24. f3 {[%emt 0:00:42]} Bh6 {[%emt 0:00:
16]} 25. Ng2 {[%emt 0:00:08]} Ba6 {[%emt 0:00:20]} 26. Rac3 {[%emt 0:00:34]}
Rfd8 {[%emt 0:00:06]} 27. b3 {[%emt 0:00:02]} Ne7 {[%emt 0:00:42]} 28. Nd6 {
[%emt 0:00:28]} R4xd6 {[%emt 0:00:11]} 29. exd6 {[%emt 0:00:02]} Qxd6 {[%emt 0:
00:01]} 30. Qg3 {[%emt 0:00:05]} f5 {[%emt 0:00:10]} 31. Kh1 {[%emt 0:00:38]}
fxe4 {[%emt 0:00:31]} 32. fxe4 {[%emt 0:00:00]} Kh7 {[%emt 0:00:08]} 33. R1c2 {
[%emt 0:00:42]} Nc6 {[%emt 0:00:07]} 34. Qh3 {[%emt 0:00:45]} Nd4 {[%emt 0:00:
16]} 35. Rf2 {[%emt 0:00:01]} Rf8 {[%emt 0:00:13]} 36. Rc1 {[%emt 0:00:11]}
Nxb3 {[%emt 0:00:05]} 37. Rd1 {[%emt 0:00:08]} c4 {[%emt 0:00:11]} 38. d4 {
[%emt 0:00:13]} Bb7 {[%emt 0:00:01]} 39. d5 {[%emt 0:00:03]} exd5 {[%emt 0:00:
09]} 40. e5 {[%emt 0:00:00]} Qe7 {[%emt 0:00:31]} 41. e6 {[%emt 0:00:18]} Rf5 {
[%emt 0:00:20]} 42. Ne3 {[%emt 0:00:06]} d4+ {[%emt 0:00:00]} 43. Ng2 {[%emt 0:
00:07]} Qxe6 {[%emt 0:00:07]} 44. Kg1 {[%emt 0:00:01]} d3 {[%emt 0:00:09]} 45.
Re1 {[%emt 0:00:01]} Qd6 {[%emt 0:00:16]} 46. Ne3 {[%emt 0:00:11]} d2 {[%emt 0:
00:31]} 47. Rd1 {[%emt 0:00:08]} Rxf4 {[%emt 0:00:07]} 48. Nxc4 {[%emt 0:00:12]
} Qd4 {[%emt 0:00:27]} 49. Ne3 {[%emt 0:00:12]} Rxf2 {[%emt 0:00:40]} 50. Kxf2
{[%emt 0:00:03]} Qxe3+ {[%emt 0:00:13]} 51. Qxe3 {[%emt 0:00:02]} Bxe3+ {
[%emt 0:00:01]} 52. Kxe3 {[%emt 0:00:01]} Bc8 {[%emt 0:00:03]} 0-1

[Event "European Rapid Championship 2021"]
[Site "Katowice"]
[Date "2021.12.18"]
[Round "4.3"]
[White "Pacuszka, Tomasz"]
[Black "Druckenthaner, Andreas"]
[Result "1-0"]
[ECO "C64"]
[WhiteElo "2193"]
[BlackElo "2291"]
[Annotator "NA"]
[PlyCount "71"]
[EventDate "2021.12.18"]
[EventType "swiss"]
[EventCountry "POL"]
[SourceTitle "playchess.com"]
[Source "ChessBase"]
[SourceQuality "1"]
[TimeControl "900+10"]

1. e4 {[%emt 0:00:01]} e5 {[%emt 0:00:01]} 2. Nf3 {[%emt 0:00:04]} Nc6 {
[%emt 0:00:01]} 3. Bb5 {[%emt 0:00:02]} Bc5 {[%emt 0:00:01]} 4. c3 {[%emt 0:00:
01]} f5 {[%emt 0:00:02]} 5. d4 {[%emt 0:00:02]} fxe4 {[%emt 0:00:01]} 6. Bxc6 {
[%emt 0:00:02]} dxc6 {[%emt 0:00:02]} 7. Nxe5 {[%emt 0:00:01]} Qd5 {[%emt 0:00:
06]} 8. O-O {[%emt 0:00:03]} Nf6 {[%emt 0:00:08]} 9. f4 {[%emt 0:00:02]} Bb6 {
[%emt 0:03:41]} 10. Be3 {[%emt 0:00:35]} c5 {[%emt 0:00:03]} 11. c4 {[%emt 0:
00:11]} Qd6 {[%emt 0:00:02]} 12. d5 {[%emt 0:00:15]} O-O {[%emt 0:00:24]} 13.
Nc3 {[%emt 0:00:05]} h5 {[%emt 0:00:41]} 14. h3 {[%emt 0:00:18]} Bf5 {[%emt 0:
00:18]} 15. Qe2 {[%emt 0:02:28]} c6 {[%emt 0:00:27]} 16. dxc6 {[%emt 0:00:34]}
bxc6 {[%emt 0:00:03]} 17. Rad1 {[%emt 0:00:01]} Qe6 {[%emt 0:00:01]} 18. Na4 {
[%emt 0:00:48]} Rfd8 {[%emt 0:01:29]} 19. Nxc5 {[%emt 0:00:22]} Bxc5 {[%emt 0:
00:19]} 20. Bxc5 {[%emt 0:00:02]} a6 {[%emt 0:00:38]} 21. b3 {[%emt 0:00:12]}
g5 {[%emt 0:00:55]} 22. Qe3 {[%emt 0:01:39]} g4 {[%emt 0:00:03]} 23. Kh2 {
[%emt 0:00:48]} Nd7 {[%emt 0:00:30]} 24. Rd6 {[%emt 0:02:29]} Qe8 {[%emt 0:01:
18]} 25. Nxc6 {[%emt 0:01:29]} Rdc8 {[%emt 0:02:07]} 26. Ne7+ {[%emt 0:00:08]}
Kf7 {[%emt 0:00:22]} 27. Nxc8 {[%emt 0:00:30]} Rxc8 {[%emt 0:00:08]} 28. Ba3 {
[%emt 0:00:23]} Nf6 {[%emt 0:01:26]} 29. Qa7+ {[%emt 0:01:14]} Nd7 {[%emt 0:00:
23]} 30. Rfd1 {[%emt 0:00:33]} Rd8 {[%emt 0:00:06]} 31. Qe3 {[%emt 0:00:11]} a5
{[%emt 0:00:18]} 32. Bb2 {[%emt 0:00:05]} Qe7 {[%emt 0:00:14]} 33. c5 {[%emt 0:
00:12]} Rg8 {[%emt 0:00:28]} 34. c6 {[%emt 0:00:22]} gxh3 {[%emt 0:01:11]} 35.
gxh3 {[%emt 0:00:15]} Bg4 {[%emt 0:00:35]} 36. Rxd7 {[%emt 0:00:24]} 1-0

[Event "European Rapid Championship 2021"]
[Site "Katowice"]
[Date "2021.12.18"]
[Round "4.4"]
[White "Balacek, Tadeas"]
[Black "Dzhuguryan, Tygran"]
[Result "1/2-1/2"]
[ECO "D38"]
[WhiteElo "2354"]
[BlackElo "2047"]
[Annotator "NA"]
[PlyCount "69"]
[EventDate "2021.12.18"]
[EventType "swiss"]
[EventCountry "POL"]
[SourceTitle "playchess.com"]
[Source "ChessBase"]
[SourceQuality "1"]
[TimeControl "900+10"]

1. d4 {[%emt 0:00:03]} d5 {[%emt 0:00:14]} 2. c4 {[%emt 0:00:02]} e6 {[%emt 0:
00:05]} 3. Nf3 {[%emt 0:00:01]} Nf6 {[%emt 0:00:12]} 4. Nc3 {[%emt 0:00:04]}
Bb4 {[%emt 0:00:12]} 5. Qa4+ {[%emt 0:00:14]} Nc6 {[%emt 0:00:03]} 6. e3 {
[%emt 0:00:05]} O-O {[%emt 0:00:36]} 7. Bd2 {[%emt 0:00:06]} a6 {[%emt 0:03:18]
} 8. Qc2 {[%emt 0:00:07]} Re8 {[%emt 0:00:54]} 9. a3 {[%emt 0:00:18]} Bd6 {
[%emt 0:01:01]} 10. Be2 {[%emt 0:01:21]} h6 {[%emt 0:00:41]} 11. O-O {[%emt 0:
02:19]} dxc4 {[%emt 0:02:29]} 12. Bxc4 {[%emt 0:00:04]} e5 {[%emt 0:00:02]} 13.
dxe5 {[%emt 0:01:32]} Nxe5 {[%emt 0:00:03]} 14. Nxe5 {[%emt 0:00:04]} Bxe5 {
[%emt 0:00:01]} 15. h3 {[%emt 0:00:15]} b5 {[%emt 0:01:15]} 16. Be2 {[%emt 0:
01:06]} Bb7 {[%emt 0:00:09]} 17. Rad1 {[%emt 0:00:08]} Qe7 {[%emt 0:00:06]} 18.
Rfe1 {[%emt 0:01:24]} Ne4 {[%emt 0:01:13]} 19. Nxe4 {[%emt 0:01:47]} Bxe4 {
[%emt 0:00:03]} 20. Qc1 {[%emt 0:00:01]} c5 {[%emt 0:00:37]} 21. Bc3 {[%emt 0:
02:36]} Rad8 {[%emt 0:00:20]} 22. f3 {[%emt 0:00:25]} Bb7 {[%emt 0:00:37]} 23.
e4 {[%emt 0:00:41]} Bg3 {[%emt 0:01:04]} 24. Rxd8 Rxd8 {[%emt 0:00:54]} 25. Rd1
{[%emt 0:00:13]} g5 {[%emt 0:00:27]} 26. Kf1 {[%emt 0:02:50]} Bf4 {[%emt 0:00:
12]} 27. Qc2 {[%emt 0:00:02]} Rxd1+ {[%emt 0:00:09]} 28. Qxd1 {[%emt 0:00:08]}
Qd6 {[%emt 0:00:26]} 29. Qxd6 {[%emt 0:00:16]} Bxd6 {[%emt 0:00:01]} 30. Kf2 {
[%emt 0:00:02]} Kf8 {[%emt 0:00:22]} 31. Bf6 {[%emt 0:00:24]} Be7 {[%emt 0:00:
33]} 32. Be5 {[%emt 0:00:08]} f6 {[%emt 0:00:03]} 33. Bc3 {[%emt 0:00:01]} Kf7
{[%emt 0:00:04]} 34. Bd1 {[%emt 0:01:01]} Bd6 {[%emt 0:00:13]} 35. Ke3 {
[%emt 0:00:12]} 1/2-1/2

[Event "European Rapid Championship 2021"]
[Site "Katowice"]
[Date "2021.12.18"]
[Round "4.4"]
[White "Jagodzinski, Piotr"]
[Black "Laurusas, Tomas"]
[Result "0-1"]
[ECO "A05"]
[WhiteElo "2145"]
[BlackElo "2553"]
[Annotator "ChessBase"]
[PlyCount "76"]
[EventDate "2021.12.18"]
[EventType "swiss"]
[EventCountry "POL"]
[SourceTitle "playchess.com"]
[Source "ChessBase"]
[SourceQuality "1"]
[TimeControl "900+10"]

1. Nf3 {[%emt 0:00:01]} Nf6 {[%emt 0:00:09]} 2. b3 {[%emt 0:00:00]} d5 {
[%emt 0:00:44]} 3. Bb2 {[%emt 0:00:02]} Bf5 {[%emt 0:00:18]} 4. e3 {[%emt 0:00:
07]} e6 {[%emt 0:00:16]} 5. d4 {[%emt 0:00:41]} Nbd7 {[%emt 0:00:22]} 6. Bd3 {
[%emt 0:00:02]} Ne4 {[%emt 0:00:05]} 7. O-O {[%emt 0:00:11]} Bd6 {[%emt 0:01:
17]} 8. c4 {[%emt 0:00:01]} Qf6 {[%emt 0:00:57]} 9. Qc2 {[%emt 0:02:01]} c6 {
[%emt 0:01:11]} 10. Nbd2 {[%emt 0:03:57]} Qg6 {[%emt 0:01:44]} 11. Nh4 {
[%emt 0:02:10]} Qh6 {[%emt 0:03:28]} 12. g3 {[%emt 0:00:04]} Bh3 {[%emt 0:00:
36]} 13. Rfe1 {[%emt 0:01:02]} f5 {[%emt 0:00:13]} 14. Nhf3 {[%emt 0:03:03]}
O-O {[%emt 0:01:52]} 15. Ne5 {[%emt 0:00:33]} Nxe5 {[%emt 0:00:01]} 16. dxe5 {
[%emt 0:00:01]} Bb4 {[%emt 0:00:01]} 17. Bxe4 {[%emt 0:02:31]} fxe4 {[%emt 0:
01:10]} 18. cxd5 {[%emt 0:00:02]} cxd5 {[%emt 0:00:04]} 19. a3 {[%emt 0:01:19]}
Bxd2 {[%emt 0:01:30]} 20. Qxd2 {[%emt 0:00:01]} Bg4 {[%emt 0:00:14]} 21. f4 {
[%emt 0:00:00]} exf3 {[%emt 0:00:06]} 22. Qf2 {[%emt 0:00:01]} Bh3 {[%emt 0:00:
52]} 23. Rac1 {[%emt 0:00:12]} Bg2 {[%emt 0:00:15]} 24. e4 {[%emt 0:00:08]}
dxe4 {[%emt 0:00:09]} 25. Rxe4 {[%emt 0:00:00]} Rad8 {[%emt 0:00:07]} 26. Re3 {
[%emt 0:00:48]} Rf5 {[%emt 0:00:12]} 27. h4 {[%emt 0:00:12]} Rf7 {[%emt 0:00:
16]} 28. Rce1 {[%emt 0:00:12]} Rfd7 {[%emt 0:00:27]} 29. Bc1 {[%emt 0:00:01]}
Qg6 {[%emt 0:00:06]} 30. Rc3 {[%emt 0:00:16]} Qg4 {[%emt 0:00:19]} 31. Bg5 {
[%emt 0:00:08]} Qh3 {[%emt 0:00:15]} 32. Qe3 {[%emt 0:00:01]} Rd2 {[%emt 0:00:
28]} 33. Qxd2 {[%emt 0:00:11]} Rxd2 {[%emt 0:00:02]} 34. Rc8+ {[%emt 0:00:28]}
Kf7 {[%emt 0:00:02]} 35. Rc7+ {[%emt 0:00:01]} Kg6 {[%emt 0:00:08]} 36. Bxd2 {
[%emt 0:00:04]} Qxg3 {[%emt 0:00:02]} 37. h5+ {[%emt 0:00:31]} Kxh5 {[%emt 0:
00:02]} 38. Rxg7 {[%emt 0:00:09]} f2# {[%emt 0:00:01]} 0-1

[Event "European Rapid Championship 2021"]
[Site "Katowice"]
[Date "2021.12.18"]
[Round "4.5"]
[White "Karpus, Michal"]
[Black "Kyc, Jerzy"]
[Result "1-0"]
[ECO "B72"]
[WhiteElo "2185"]
[BlackElo "2308"]
[Annotator "NA"]
[PlyCount "47"]
[EventDate "2021.12.18"]
[EventType "swiss"]
[EventCountry "POL"]
[SourceTitle "playchess.com"]
[Source "ChessBase"]
[SourceQuality "1"]
[TimeControl "900+10"]

1. e4 {[%emt 0:00:01]} c5 {[%emt 0:00:00]} 2. Nf3 {[%emt 0:00:02]} d6 {[%emt 0:
00:01]} 3. d4 {[%emt 0:00:01]} cxd4 {[%emt 0:00:01]} 4. Nxd4 {[%emt 0:00:01]}
Nf6 {[%emt 0:00:01]} 5. Nc3 {[%emt 0:00:02]} g6 {[%emt 0:00:01]} 6. Be3 {
[%emt 0:00:14]} Bg7 {[%emt 0:00:01]} 7. Be2 {[%emt 0:00:11]} O-O {[%emt 0:00:
03]} 8. Qd2 {[%emt 0:00:02]} Nc6 {[%emt 0:00:01]} 9. O-O-O {[%emt 0:00:03]}
Nxd4 {[%emt 0:00:21]} 10. Bxd4 {[%emt 0:00:03]} Be6 {[%emt 0:00:12]} 11. Kb1 {
[%emt 0:01:13]} Qc7 {[%emt 0:00:07]} 12. h4 {[%emt 0:01:17]} h5 {[%emt 0:00:26]
} 13. f4 {[%emt 0:01:03]} b5 {[%emt 0:00:24]} 14. f5 {[%emt 0:00:46]} Bc4 {
[%emt 0:01:40]} 15. Bf3 {[%emt 0:01:17]} b4 {[%emt 0:01:21]} 16. Nd5 {[%emt 0:
00:06]} Bxd5 {[%emt 0:00:11]} 17. exd5 {[%emt 0:00:02]} a5 {[%emt 0:01:34]} 18.
Qd3 {[%emt 0:00:54]} Kh7 {[%emt 0:03:33]} 19. fxg6+ {[%emt 0:00:32]} fxg6 {
[%emt 0:00:02]} 20. g4 {[%emt 0:01:15]} Nd7 {[%emt 0:03:32]} 21. gxh5 {[%emt 0:
00:31]} Ne5 {[%emt 0:01:23]} 22. Bxe5 {[%emt 0:00:15]} dxe5 {[%emt 0:00:12]}
23. Qxg6+ {[%emt 0:00:02]} Kh8 {[%emt 0:00:02]} 24. Be4 {[%emt 0:00:01]} 1-0

[Event "European Rapid Championship 2021"]
[Site "Katowice"]
[Date "2021.12.18"]
[Round "4.6"]
[White "Kosakowski, Jakub"]
[Black "Morkunas, Gustas"]
[Result "1/2-1/2"]
[ECO "B40"]
[WhiteElo "2438"]
[BlackElo "1907"]
[Annotator "ChessBase"]
[PlyCount "156"]
[EventDate "2021.12.18"]
[EventType "swiss"]
[EventCountry "POL"]
[SourceTitle "playchess.com"]
[Source "ChessBase"]
[SourceQuality "1"]
[TimeControl "900+10"]

1. e4 {[%emt 0:00:03]} c5 {[%emt 0:00:01]} 2. Nf3 {[%emt 0:00:03]} e6 {[%emt 0:
00:02]} 3. b3 {[%emt 0:00:05]} d6 {[%emt 0:01:19]} 4. Bb2 {[%emt 0:00:04]} Nf6
{[%emt 0:00:05]} 5. Nc3 {[%emt 0:00:47]} a6 {[%emt 0:00:12]} 6. a4 {[%emt 0:00:
22]} Nc6 {[%emt 0:00:17]} 7. Be2 {[%emt 0:00:05]} Be7 {[%emt 0:00:04]} 8. O-O {
[%emt 0:00:03]} O-O {[%emt 0:00:03]} 9. d4 {[%emt 0:00:02]} cxd4 {[%emt 0:00:
07]} 10. Nxd4 {[%emt 0:00:02]} Qc7 {[%emt 0:00:49]} 11. Nxc6 {[%emt 0:00:07]}
bxc6 {[%emt 0:01:16]} 12. f4 {[%emt 0:00:13]} Bb7 {[%emt 0:00:52]} 13. Bd3 {
[%emt 0:00:15]} c5 {[%emt 0:00:32]} 14. Qf3 {[%emt 0:00:21]} Rad8 {[%emt 0:00:
57]} 15. Qh3 {[%emt 0:00:22]} e5 {[%emt 0:01:13]} 16. fxe5 {[%emt 0:05:07]}
dxe5 {[%emt 0:00:17]} 17. Kh1 {[%emt 0:00:08]} Bc8 {[%emt 0:02:05]} 18. Qg3 {
[%emt 0:00:06]} Nh5 {[%emt 0:00:27]} 19. Qf3 {[%emt 0:01:19]} Nf4 {[%emt 0:00:
17]} 20. Bc4 {[%emt 0:00:01]} Bd6 {[%emt 0:03:52]} 21. g3 {[%emt 0:01:18]} Ne6
{[%emt 0:00:28]} 22. Nd5 {[%emt 0:00:07]} Qb7 {[%emt 0:00:22]} 23. Ne3 {
[%emt 0:03:21]} Ng5 {[%emt 0:01:26]} 24. Qe2 {[%emt 0:00:34]} Qxe4+ {[%emt 0:
00:31]} 25. Ng2 {[%emt 0:00:02]} Qxe2 {[%emt 0:00:26]} 26. Bxe2 {[%emt 0:00:02]
} Bb7 {[%emt 0:00:06]} 27. h4 {[%emt 0:00:27]} Ne6 {[%emt 0:00:39]} 28. c3 {
[%emt 0:00:21]} e4 {[%emt 0:00:38]} 29. Kh2 {[%emt 0:00:02]} Nc7 {[%emt 0:00:
04]} 30. Ne3 {[%emt 0:00:06]} Nd5 {[%emt 0:00:20]} 31. Nc4 {[%emt 0:00:30]} Bc7
{[%emt 0:00:03]} 32. Rad1 {[%emt 0:00:02]} f5 {[%emt 0:00:10]} 33. Kg2 {
[%emt 0:01:04]} f4 {[%emt 0:00:11]} 34. Bg4 {[%emt 0:00:01]} f3+ {[%emt 0:00:
12]} 35. Kf2 {[%emt 0:00:02]} Nf6 {[%emt 0:00:05]} 36. Be6+ {[%emt 0:00:05]}
Kh8 {[%emt 0:00:01]} 37. Ne3 {[%emt 0:00:15]} Nh5 {[%emt 0:00:25]} 38. Nf5 {
[%emt 0:00:06]} Be5 {[%emt 0:00:04]} 39. Ba3 {[%emt 0:00:37]} Rxd1 {[%emt 0:00:
23]} 40. Rxd1 {[%emt 0:00:02]} g6 {[%emt 0:00:00]} 41. Bxc5 {[%emt 0:00:19]}
Re8 {[%emt 0:00:21]} 42. Bd4 {[%emt 0:00:57]} Bxd4+ {[%emt 0:00:12]} 43. Nxd4 {
[%emt 0:00:02]} Ng7 {[%emt 0:00:02]} 44. Bd7 {[%emt 0:00:22]} e3+ {[%emt 0:00:
04]} 45. Kg1 {[%emt 0:00:02]} Rf8 {[%emt 0:00:06]} 46. Bg4 {[%emt 0:00:10]} h5
{[%emt 0:00:13]} 47. Bxf3 {[%emt 0:00:01]} Bxf3 {[%emt 0:00:02]} 48. Rf1 {
[%emt 0:00:01]} e2 {[%emt 0:00:16]} 49. Nxe2 {[%emt 0:00:01]} Kg8 {[%emt 0:00:
09]} 50. Nf4 {[%emt 0:00:05]} Be4 {[%emt 0:00:07]} 51. Re1 {[%emt 0:00:03]} Bf5
{[%emt 0:00:04]} 52. b4 {[%emt 0:00:13]} Rc8 {[%emt 0:00:38]} 53. Nd5 {[%emt 0:
00:02]} Rd8 {[%emt 0:00:01]} 54. c4 {[%emt 0:00:10]} Be6 {[%emt 0:00:06]} 55.
Ne7+ {[%emt 0:00:02]} Kf7 56. Nc6 {[%emt 0:00:02]} Rd2 {[%emt 0:00:13]} 57. b5
{[%emt 0:00:04]} axb5 {[%emt 0:00:13]} 58. axb5 {[%emt 0:00:11]} Nf5 {[%emt 0:
00:26]} 59. b6 {[%emt 0:00:01]} Nxg3 {[%emt 0:00:04]} 60. Re3 {[%emt 0:00:43]}
Ne2+ {[%emt 0:00:11]} 61. Kf1 {[%emt 0:00:03]} Nd4 {[%emt 0:00:15]} 62. Nd8+ {
[%emt 0:00:57]} Ke7 {[%emt 0:00:08]} 63. Nxe6 {[%emt 0:00:03]} Nxe6 {[%emt 0:
00:03]} 64. c5 {[%emt 0:00:03]} Rb2 {[%emt 0:00:13]} 65. Rc3 {[%emt 0:00:26]}
Nxc5 {[%emt 0:00:09]} 66. Rxc5 {[%emt 0:00:01]} Rxb6 {[%emt 0:00:01]} 67. Kg2 {
[%emt 0:00:09]} Rb4 {[%emt 0:00:10]} 68. Kg3 {[%emt 0:00:02]} Kf6 {[%emt 0:00:
08]} 69. Rc6+ {[%emt 0:00:01]} Kf5 {[%emt 0:00:07]} 70. Rc3 {[%emt 0:00:45]}
Rg4+ {[%emt 0:00:15]} 71. Kh3 {[%emt 0:00:01]} Re4 {[%emt 0:00:06]} 72. Rf3+ {
[%emt 0:00:06]} Rf4 {[%emt 0:00:08]} 73. Kg3 {[%emt 0:00:19]} Rxf3+ {[%emt 0:
00:21]} 74. Kxf3 {[%emt 0:00:02]} Ke5 {[%emt 0:00:02]} 75. Ke3 {[%emt 0:00:01]}
Kf5 {[%emt 0:00:17]} 76. Kf3 {[%emt 0:00:01]} Ke6 {[%emt 0:00:06]} 77. Ke2 {
[%emt 0:00:01]} Kf6 {[%emt 0:00:04]} 78. Kf2 {[%emt 0:00:01]} Ke5 1/2-1/2

[Event "European Rapid Championship 2021"]
[Site "Katowice"]
[Date "2021.12.18"]
[Round "4.7"]
[White "Donchenko, Alexander"]
[Black "Kulon, Klaudia"]
[Result "1-0"]
[ECO "E94"]
[WhiteElo "2535"]
[BlackElo "2328"]
[Annotator "ChessBase"]
[PlyCount "81"]
[EventDate "2021.12.18"]
[EventType "swiss"]
[EventCountry "POL"]
[SourceTitle "playchess.com"]
[Source "ChessBase"]
[SourceQuality "1"]
[TimeControl "900+10"]

1. Nf3 {[%emt 0:00:03]} Nf6 {[%emt 0:00:02]} 2. c4 {[%emt 0:00:02]} g6 {
[%emt 0:00:02]} 3. Nc3 {[%emt 0:00:03]} Bg7 {[%emt 0:00:02]} 4. e4 {[%emt 0:00:
08]} d6 {[%emt 0:00:02]} 5. d4 {[%emt 0:00:03]} O-O {[%emt 0:00:03]} 6. Be2 {
[%emt 0:00:03]} e5 {[%emt 0:00:02]} 7. O-O {[%emt 0:00:11]} exd4 {[%emt 0:00:
05]} 8. Nxd4 {[%emt 0:00:02]} Re8 {[%emt 0:00:02]} 9. f3 {[%emt 0:00:03]} c6 {
[%emt 0:00:02]} 10. Kh1 {[%emt 0:00:07]} Nbd7 {[%emt 0:00:05]} 11. Bg5 {
[%emt 0:01:29]} Qb6 {[%emt 0:00:26]} 12. Nb3 {[%emt 0:00:23]} a5 {[%emt 0:00:
08]} 13. Qd2 {[%emt 0:00:58]} a4 {[%emt 0:00:04]} 14. Be3 {[%emt 0:00:25]} Qd8
{[%emt 0:00:45]} 15. Nd4 {[%emt 0:00:06]} Nc5 {[%emt 0:01:42]} 16. Rad1 {
[%emt 0:00:14]} Nh5 {[%emt 0:00:02]} 17. Nxc6 {[%emt 0:01:39]} bxc6 {[%emt 0:
02:03]} 18. Bxc5 {[%emt 0:00:03]} Qh4 {[%emt 0:02:20]} 19. Bf2 {[%emt 0:00:55]}
Qf4 {[%emt 0:00:30]} 20. Be3 {[%emt 0:00:21]} Qh4 {[%emt 0:00:51]} 21. Bg5 {
[%emt 0:01:22]} Ng3+ {[%emt 0:00:10]} 22. Kg1 {[%emt 0:00:02]} Nxf1 {[%emt 0:
00:18]} 23. Rxf1 {[%emt 0:02:08]} Qh5 {[%emt 0:00:52]} 24. h4 {[%emt 0:02:34]}
Re5 {[%emt 0:05:03]} 25. f4 {[%emt 0:00:27]} Rxg5 {[%emt 0:00:04]} 26. Bxh5 {
[%emt 0:00:02]} Rxh5 {[%emt 0:00:02]} 27. Qxd6 {[%emt 0:00:18]} Be6 {[%emt 0:
00:09]} 28. g3 {[%emt 0:01:11]} a3 {[%emt 0:00:34]} 29. e5 {[%emt 0:00:19]}
axb2 {[%emt 0:00:16]} 30. Rb1 {[%emt 0:00:32]} Bf8 {[%emt 0:00:25]} 31. Qd4 {
[%emt 0:00:13]} Ba3 {[%emt 0:00:27]} 32. Ne4 {[%emt 0:00:05]} Bf5 {[%emt 0:00:
52]} 33. Nf6+ {[%emt 0:00:13]} Kf8 {[%emt 0:00:03]} 34. Rxb2 {[%emt 0:00:11]}
Bxb2 {[%emt 0:00:04]} 35. Qxb2 {[%emt 0:00:05]} Rh6 {[%emt 0:00:05]} 36. a4 {
[%emt 0:00:17]} Bc8 {[%emt 0:00:51]} 37. Qb6 {[%emt 0:00:22]} Kg7 {[%emt 0:00:
34]} 38. Qxc6 {[%emt 0:00:05]} Rb8 {[%emt 0:00:01]} 39. Qe8 {[%emt 0:00:09]}
Rh5 {[%emt 0:00:25]} 40. Qg8+ {[%emt 0:00:05]} Kh6 {[%emt 0:00:01]} 41. Qf8# {
[%emt 0:00:02]} 1-0